[Event "Gaprindashvili Cup Women III Stage 2020"]
[Site "Online"]
[Date "2020.11.12"]
[Round "1.2"]
[White "Melia, Salome"]
[Black "Vakhania, Alexandra"]
[Result "1/2-1/2"]
[ECO "B06"]
[WhiteElo "2371"]
[BlackElo "2134"]
[Annotator "broadcasts"]
[PlyCount "132"]
[EventDate "2020.11.04"]
[EventType "k.o."]
[TimeControl "1500+5"]

1. e4 {[%emt 0:00:00]} c6 {[%emt 0:00:06]} 2. d4 {[%emt 0:00:03]} d5 {[%emt 0:00:02]} 3. e5 {[%emt 0:00:04]} g6 {[%emt 0:00:04]} 4. Nf3 {[%emt 0:00:02]} Bg7 {[%emt 0:00:02]} 5. Be2 {[%emt 0:00:05]} Nh6 {[%emt 0:00:03]} 6. O-O {[%emt 0:00:05]} O-O {[%emt 0:00:02]} 7. Re1 {[%emt 0:00:40]} f6 {[%emt 0:00:03]} 8. exf6 {[%emt 0:00:03]} exf6 {[%emt 0:00:03]} 9. c4 {[%emt 0:00:03]} Nf7 {[%emt 0:00:07]} 10. Nc3 {[%emt 0:00:12]} dxc4 {[%emt 0:01:00]} 11. Bxc4 {[%emt 0:00:04]} Nd7 {[%emt 0:00:01]} 12. Qb3 {[%emt 0:02:24]} Nb6 {[%emt 0:00:05]} 13. Be6 {[%emt 0:00:05]} Bxe6 {[%emt 0:00:19]} 14. Qxe6 {[%emt 0:02:10]} Re8 {[%emt 0:00:10]} 15. Qxe8+ {[%emt 0:00:30]} Qxe8 {[%emt 0:00:04]} 16. Rxe8+ {[%emt 0:00:02]} Rxe8 {[%emt 0:00:03]} 17. Bf4 {[%emt 0:00:04]} g5 {[%emt 0:00:30]} 18. Bc7 {[%emt 0:01:54]} f5 {[%emt 0:00:40]} 19. Bxb6 {[%emt 0:00:48]} axb6 {[%emt 0:00:05]} 20. Kf1 {[%emt 0:01:19]} g4 {[%emt 0:00:38]} 21. Nh4 {[%emt 0:00:04]} Nd6 {[%emt 0:00:04]} 22. Rd1 {[%emt 0:00:52]} Bf6 {[%emt 0:02:06]} 23. g3 {[%emt 0:00:07]} Bxh4 {[%emt 0:00:12]} 24. gxh4 {[%emt 0:00:02]} b5 {[%emt 0:00:04]} 25. Ne2 {[%emt 0:01:27]} Kf7 {[%emt 0:00:11]} 26. b3 {[%emt 0:01:22]} b4 {[%emt 0:02:05]} 27. Rc1 {[%emt 0:01:42]} Ra8 {[%emt 0:00:53]} 28. Rc2 {[%emt 0:00:02]} Nb5 {[%emt 0:01:18]} 29. Kg2 {[%emt 0:01:37]} Re8 {[%emt 0:00:58]} 30. Kf1 {[%emt 0:00:41]} f4 {[%emt 0:00:59]} 31. f3 {[%emt 0:07:06]} gxf3 {[%emt 0:00:54]} 32. Nxf4 {[%emt 0:00:02]} Nxd4 {[%emt 0:00:08]} 33. Rc4 {[%emt 0:00:09]} Re4 {[%emt 0:02:33]} 34. Nd3 {[%emt 0:00:02]} Rxh4 {[%emt 0:00:10]} 35. Rxb4 {[%emt 0:00:15]} Nf5 {[%emt 0:00:58]} 36. Rxb7+ {[%emt 0:00:34]} Ke6 {[%emt 0:00:13]} 37. Kf2 {[%emt 0:00:43]} Nd6 {[%emt 0:08:08]} 38. Rc7 {[%emt 0:00:02]} Kd5 {[%emt 0:00:34]} 39. Kxf3 {[%emt 0:00:14]} Rh3+ {[%emt 0:00:05]} 40. Ke2 {[%emt 0:00:01]} Rxh2+ {[%emt 0:00:05]} 41. Kf3 {[%emt 0:00:17]} Rh3+ {[%emt 0:00:57]} 42. Ke2 {[%emt 0:00:01]} Rh4 {[%emt 0:00:36]} 43. Rd7 {[%emt 0:00:20]} Ke6 {[%emt 0:00:08]} 44. Rc7 {[%emt 0:00:02]} Kd5 {[%emt 0:00:06]} 45. Rd7 {[%emt 0:00:02]} c5 {[%emt 0:00:05]} 46. a4 {[%emt 0:00:12]} Re4+ {[%emt 0:00:06]} 47. Kd2 {[%emt 0:00:02]} Rh4 {[%emt 0:00:02]} 48. Ke2 {[%emt 0:00:02]} Rh2+ {[%emt 0:00:03]} 49. Ke3 {[%emt 0:00:05]} h5 {[%emt 0:00:06]} 50. a5 {[%emt 0:00:13]} h4 {[%emt 0:00:03]} 51. a6 {[%emt 0:00:02]} Ra2 {[%emt 0:00:01]} 52. a7 {[%emt 0:00:04]} Ra1 {[%emt 0:00:07]} 53. Nf4+ {[%emt 0:00:11]} Kc6 {[%emt 0:00:03]} 54. Rh7 {[%emt 0:00:03]} Nf5+ {[%emt 0:00:06]} 55. Ke4 {[%emt 0:00:02]} Nd6+ {[%emt 0:00:04]} 56. Kd3 {[%emt 0:00:06]} Ra3 {[%emt 0:00:04]} 57. Kc2 {[%emt 0:00:04]} Nb5 {[%emt 0:00:04]} 58. Rh6+ {[%emt 0:00:06]} Kb7 {[%emt 0:00:02]} 59. Rh7+ {[%emt 0:00:04]} Ka8 {[%emt 0:00:04]} 60. Rxh4 {[%emt 0:00:07]} Nd4+ {[%emt 0:00:03]} 61. Kc3 {[%emt 0:00:03]} Rxb3+ {[%emt 0:00:03]} 62. Kc4 {[%emt 0:00:02]} Kxa7 {[%emt 0:00:04]} 63. Kxc5 {[%emt 0:00:06]} Nc2 {[%emt 0:00:03]} 64. Rh7+ {[%emt 0:00:03]} Ka6 {[%emt 0:00:03]} 65. Nd5 {[%emt 0:00:11]} Rb7 {[%emt 0:00:10]} 66. Rxb7 {[%emt 0:00:02]} Kxb7 {[%emt 0:00:01]} 1/2-1/2

[Event "Gaprindashvili Cup Women III Stage 2020"]
[Site "Online"]
[Date "2020.11.12"]
[Round "1.2"]
[White "Tsatsalashvili, Keti"]
[Black "Khurtsilava, Inga"]
[Result "1/2-1/2"]
[ECO "E18"]
[WhiteElo "2331"]
[BlackElo "2260"]
[Annotator "broadcasts"]
[PlyCount "140"]
[EventDate "2020.11.04"]
[EventType "k.o."]
[TimeControl "1500+5"]

1. d4 {[%emt 0:00:00]} Nf6 {[%emt 0:00:07]} 2. Nf3 {[%emt 0:00:03]} e6 {[%emt 0:00:06]} 3. g3 {[%emt 0:00:10]} b6 {[%emt 0:00:03]} 4. Bg2 {[%emt 0:00:03]} Bb7 {[%emt 0:00:03]} 5. O-O {[%emt 0:00:02]} Be7 {[%emt 0:00:06]} 6. c4 {[%emt 0:00:04]} O-O {[%emt 0:00:11]} 7. Nc3 {[%emt 0:00:04]} d5 {[%emt 0:00:03]} 8. cxd5 {[%emt 0:00:11]} exd5 {[%emt 0:00:04]} 9. Bf4 {[%emt 0:00:20]} Nbd7 {[%emt 0:00:06]} 10. Rc1 {[%emt 0:00:06]} c6 {[%emt 0:00:03]} 11. Ne5 {[%emt 0:00:49]} Nxe5 {[%emt 0:00:17]} 12. Bxe5 {[%emt 0:00:03]} Bd6 {[%emt 0:00:37]} 13. e4 {[%emt 0:01:07]} dxe4 {[%emt 0:06:58]} 14. Nxe4 {[%emt 0:00:06]} Nxe4 {[%emt 0:00:06]} 15. Bxe4 {[%emt 0:00:04]} Bxe5 {[%emt 0:02:05]} 16. dxe5 {[%emt 0:00:05]} Qe7 {[%emt 0:00:03]} 17. Qd6 {[%emt 0:02:13]} Rfe8 {[%emt 0:00:21]} 18. Qxe7 {[%emt 0:00:12]} Rxe7 {[%emt 0:00:04]} 19. f4 {[%emt 0:01:19]} c5 {[%emt 0:00:21]} 20. Bxb7 {[%emt 0:00:11]} Rxb7 {[%emt 0:00:05]} 21. Rfd1 {[%emt 0:00:02]} Kf8 {[%emt 0:00:04]} 22. Rd5 {[%emt 0:00:31]} Ke7 {[%emt 0:00:08]} 23. Rcd1 {[%emt 0:00:03]} g6 {[%emt 0:00:04]} 24. Kf2 {[%emt 0:00:04]} h5 {[%emt 0:00:10]} 25. Ke3 {[%emt 0:00:02]} Rc8 {[%emt 0:00:10]} 26. Ke4 {[%emt 0:00:32]} b5 {[%emt 0:00:05]} 27. Rc1 {[%emt 0:01:10]} c4 {[%emt 0:00:06]} 28. Kd4 {[%emt 0:00:43]} Rcc7 {[%emt 0:01:15]} 29. Rc2 {[%emt 0:01:25]} Rc6 {[%emt 0:01:20]} 30. a3 {[%emt 0:00:09]} a6 {[%emt 0:00:38]} 31. h3 {[%emt 0:00:39]} Rb8 {[%emt 0:01:39]} 32. Kc3 {[%emt 0:00:20]} a5 {[%emt 0:01:17]} 33. Kd4 {[%emt 0:00:07]} Ke6 {[%emt 0:00:32]} 34. g4 {[%emt 0:00:14]} h4 {[%emt 0:01:33]} 35. Ke4 {[%emt 0:01:48]} f5+ {[%emt 0:01:24]} 36. exf6 {[%emt 0:02:17]} Kxf6 {[%emt 0:00:04]} 37. Kd4 {[%emt 0:00:06]} Re6 {[%emt 0:00:45]} 38. Rf2 {[%emt 0:03:13]} Re1 {[%emt 0:02:00]} 39. Kc5 {[%emt 0:00:18]} Re3 {[%emt 0:00:16]} 40. f5 {[%emt 0:00:27]} g5 {[%emt 0:00:07]} 41. Rd6+ {[%emt 0:00:16]} Kf7 {[%emt 0:00:10]} 42. Rd7+ {[%emt 0:03:50]} Kf6 {[%emt 0:00:20]} 43. Rd6+ {[%emt 0:00:03]} Kf7 {[%emt 0:00:06]} 44. Rfd2 {[%emt 0:00:34]} c3 {[%emt 0:00:24]} 45. Rd7+ {[%emt 0:00:27]} Ke8 {[%emt 0:00:19]} 46. bxc3 {[%emt 0:00:23]} Rxc3+ {[%emt 0:00:10]} 47. Kd4 {[%emt 0:00:30]} Rbc8 {[%emt 0:00:57]} 48. Rh7 {[%emt 0:00:40]} R8c5 {[%emt 0:00:54]} 49. f6 {[%emt 0:00:47]} R3c4+ {[%emt 0:00:11]} 50. Ke3 {[%emt 0:00:12]} Rc7 {[%emt 0:00:04]} 51. Rh8+ {[%emt 0:00:05]} Kf7 {[%emt 0:00:03]} 52. Rd6 {[%emt 0:00:03]} Rc3+ {[%emt 0:00:06]} 53. Kd2 {[%emt 0:00:02]} Rc2+ {[%emt 0:00:03]} 54. Kd3 {[%emt 0:00:03]} R2c3+ {[%emt 0:00:04]} 55. Kd4 {[%emt 0:00:03]} R3c4+ {[%emt 0:00:03]} 56. Kd3 {[%emt 0:00:04]} Rc3+ {[%emt 0:00:02]} 57. Kd2 {[%emt 0:00:03]} Rc2+ {[%emt 0:00:02]} 58. Kd1 {[%emt 0:00:04]} Rc1+ {[%emt 0:00:03]} 59. Kd2 {[%emt 0:00:02]} R1c2+ {[%emt 0:00:03]} 60. Kd1 {[%emt 0:00:03]} Rc1+ {[%emt 0:00:03]} 61. Kd2 {[%emt 0:00:02]} R7c2+ {[%emt 0:00:17]} 62. Ke3 {[%emt 0:00:07]} Rc3+ {[%emt 0:00:10]} 63. Kd2 {[%emt 0:00:03]} R1c2+ {[%emt 0:00:03]} 64. Kd1 {[%emt 0:00:02]} Rc1+ {[%emt 0:00:02]} 65. Kd2 {[%emt 0:00:02]} R1c2+ {[%emt 0:00:02]} 66. Kd1 {[%emt 0:00:03]} Rc1+ {[%emt 0:00:03]} 67. Kd2 {[%emt 0:00:03]} R3c2+ {[%emt 0:00:02]} 68. Ke3 {[%emt 0:00:04]} Rc3+ {[%emt 0:00:05]} 69. Kd2 {[%emt 0:00:03]} R3c2+ {[%emt 0:00:03]} 70. Ke3 {[%emt 0:00:05]} Rc3+ {[%emt 0:00:11]} 1/2-1/2

[Event "Gaprindashvili Cup Women III Stage 2020"]
[Site "Online"]
[Date "2020.11.12"]
[Round "1.2"]
[White "Charkhalashvili, Inga"]
[Black "Purtseladze, Maka"]
[Result "1-0"]
[ECO "E70"]
[WhiteElo "2276"]
[BlackElo "2274"]
[Annotator "broadcasts"]
[PlyCount "79"]
[EventDate "2020.11.04"]
[EventType "k.o."]
[TimeControl "1500+5"]

1. d4 {[%emt 0:00:03]} Nf6 {[%emt 0:00:03]} 2. c4 {[%emt 0:00:08]} g6 {[%emt 0:00:02]} 3. f3 {[%emt 0:00:04]} Bg7 {[%emt 0:00:02]} 4. e4 {[%emt 0:00:03]} O-O {[%emt 0:00:02]} 5. Nc3 {[%emt 0:00:03]} c6 {[%emt 0:00:02]} 6. Be3 {[%emt 0:00:27]} a6 {[%emt 0:00:03]} 7. Bd3 {[%emt 0:00:06]} b5 {[%emt 0:00:04]} 8. Nge2 {[%emt 0:00:39]} bxc4 {[%emt 0:02:16]} 9. Bxc4 {[%emt 0:00:04]} d5 {[%emt 0:00:03]} 10. Bb3 {[%emt 0:01:04]} a5 {[%emt 0:04:25]} 11. O-O {[%emt 0:00:50]} Ba6 {[%emt 0:00:12]} 12. Rc1 {[%emt 0:00:22]} dxe4 {[%emt 0:04:05]} 13. Nxe4 {[%emt 0:00:38]} Nxe4 {[%emt 0:00:52]} 14. fxe4 {[%emt 0:00:05]} Bxe2 {[%emt 0:00:06]} 15. Qxe2 {[%emt 0:00:03]} a4 {[%emt 0:00:08]} 16. Bc4 {[%emt 0:01:25]} e6 {[%emt 0:02:48]} 17. Rcd1 {[%emt 0:01:19]} Nd7 {[%emt 0:00:47]} 18. Kh1 {[%emt 0:01:46]} Nb6 {[%emt 0:00:21]} 19. Ba6 {[%emt 0:00:25]} Qb8 {[%emt 0:01:15]} 20. Rc1 {[%emt 0:01:34]} Qd6 {[%emt 0:01:00]} 21. Bb7 {[%emt 0:00:48]} Ra7 {[%emt 0:01:33]} 22. e5 {[%emt 0:01:09]} Qd5 {[%emt 0:00:35]} 23. Bxc6 {[%emt 0:00:16]} Qxa2 {[%emt 0:00:04]} 24. d5 {[%emt 0:01:07]} Rb8 {[%emt 0:01:50]} 25. Qf2 {[%emt 0:01:01]} Qb3 {[%emt 0:01:34]} 26. d6 {[%emt 0:03:40]} Bxe5 {[%emt 0:02:13]} 27. d7 {[%emt 0:00:10]} Rxd7 {[%emt 0:00:24]} 28. Bxd7 {[%emt 0:00:07]} f5 {[%emt 0:00:13]} 29. Bxb6 {[%emt 0:00:12]} Rxb6 {[%emt 0:00:04]} 30. Bxa4 {[%emt 0:01:38]} Qb4 {[%emt 0:00:13]} 31. b3 {[%emt 0:00:13]} Bd4 {[%emt 0:00:04]} 32. Rc8+ {[%emt 0:00:22]} Kg7 {[%emt 0:00:02]} 33. Rc7+ {[%emt 0:00:08]} Kf6 {[%emt 0:00:12]} 34. Qh4+ {[%emt 0:00:14]} g5 {[%emt 0:00:02]} 35. Qxh7 {[%emt 0:00:11]} Ke5 {[%emt 0:00:02]} 36. Rc4 {[%emt 0:00:14]} Qd2 {[%emt 0:00:04]} 37. Qc7+ {[%emt 0:01:25]} Kf6 {[%emt 0:00:08]} 38. Qd8+ {[%emt 0:00:36]} Ke5 {[%emt 0:00:01]} 39. Rc5+ {[%emt 0:00:40]} Ke4 {[%emt 0:00:10]} 40. Qxb6 {[%emt 0:00:12]} 1-0

[Event "Gaprindashvili Cup Women III Stage 2020"]
[Site "Online"]
[Date "2020.11.12"]
[Round "1.2"]
[White "Mikadze, Miranda"]
[Black "Khomeriki, Nino"]
[Result "1-0"]
[ECO "C60"]
[WhiteElo "2269"]
[BlackElo "2293"]
[Annotator "broadcasts"]
[PlyCount "153"]
[EventDate "2020.11.04"]
[EventType "k.o."]
[TimeControl "1500+5"]

1. e4 {[%emt 0:00:04]} e5 {[%emt 0:00:03]} 2. Nf3 {[%emt 0:00:01]} Nc6 {[%emt 0:00:03]} 3. Bb5 {[%emt 0:00:03]} a6 {[%emt 0:00:10]} 4. Ba4 {[%emt 0:00:01]} Nge7 {[%emt 0:00:02]} 5. O-O {[%emt 0:00:08]} g6 {[%emt 0:00:04]} 6. d4 {[%emt 0:01:10]} exd4 {[%emt 0:00:18]} 7. Bg5 {[%emt 0:04:14]} Bg7 {[%emt 0:01:02]} 8. e5 {[%emt 0:00:39]} b5 {[%emt 0:02:08]} 9. Bb3 {[%emt 0:00:04]} O-O {[%emt 0:00:06]} 10. a4 {[%emt 0:01:26]} Bb7 {[%emt 0:00:23]} 11. Re1 {[%emt 0:01:19]} h6 {[%emt 0:00:44]} 12. Bh4 {[%emt 0:02:01]} g5 {[%emt 0:01:08]} 13. Bxg5 {[%emt 0:00:44]} hxg5 {[%emt 0:13:47]} 14. Nxg5 {[%emt 0:00:06]} Bh6 {[%emt 0:00:01]} 15. Qh5 {[%emt 0:00:27]} Kg7 {[%emt 0:02:42]} 16. Nxf7 {[%emt 0:00:41]} Rxf7 {[%emt 0:00:03]} 17. Qxf7+ {[%emt 0:00:03]} Kh8 {[%emt 0:00:02]} 18. axb5 {[%emt 0:01:09]} axb5 {[%emt 0:00:04]} 19. Rxa8 {[%emt 0:00:03]} Bxa8 {[%emt 0:00:03]} 20. Na3 {[%emt 0:00:33]} Na5 {[%emt 0:02:17]} 21. Qf6+ {[%emt 0:01:13]} Kh7 {[%emt 0:00:04]} 22. Bf7 {[%emt 0:00:05]} Qf8 {[%emt 0:00:26]} 23. Nxb5 {[%emt 0:00:54]} c5 {[%emt 0:00:03]} 24. e6 {[%emt 0:01:27]} dxe6 {[%emt 0:00:58]} 25. Rxe6 {[%emt 0:00:23]} Nac6 {[%emt 0:00:02]} 26. Nd6 {[%emt 0:01:00]} Qg7 {[%emt 0:00:13]} 27. Qxg7+ {[%emt 0:00:27]} Kxg7 {[%emt 0:00:03]} 28. Be8 {[%emt 0:00:12]} Bg5 {[%emt 0:00:11]} 29. g3 {[%emt 0:03:52]} Bf6 {[%emt 0:00:08]} 30. Bd7 {[%emt 0:00:45]} Ne5 {[%emt 0:00:05]} 31. Ne8+ {[%emt 0:00:04]} Kh8 {[%emt 0:00:06]} 32. Nxf6 {[%emt 0:00:08]} Nf3+ {[%emt 0:00:02]} 33. Kf1 {[%emt 0:00:03]} Nxh2+ {[%emt 0:00:08]} 34. Ke2 {[%emt 0:00:07]} Bf3+ {[%emt 0:00:03]} 35. Kd2 {[%emt 0:00:02]} Ng6 {[%emt 0:00:06]} 36. Ne4 {[%emt 0:00:41]} Nf8 {[%emt 0:00:03]} 37. Re8 {[%emt 0:00:14]} Kg7 {[%emt 0:00:02]} 38. Nxc5 {[%emt 0:00:07]} Kf7 {[%emt 0:00:03]} 39. Rb8 {[%emt 0:00:11]} Ke7 {[%emt 0:00:07]} 40. Bb5 {[%emt 0:00:09]} Ng6 {[%emt 0:00:04]} 41. Be2 {[%emt 0:00:08]} Bd5 {[%emt 0:00:04]} 42. Rb6 {[%emt 0:00:13]} Ne5 {[%emt 0:00:03]} 43. f4 {[%emt 0:00:09]} Nc4+ {[%emt 0:00:10]} 44. Bxc4 {[%emt 0:00:04]} Bxc4 {[%emt 0:00:01]} 45. b3 {[%emt 0:00:07]} Nf3+ {[%emt 0:00:10]} 46. Kc1 {[%emt 0:00:02]} Bd5 {[%emt 0:00:01]} 47. Nd3 {[%emt 0:00:04]} Ng1 {[%emt 0:00:06]} 48. Kb2 {[%emt 0:00:08]} Ne2 {[%emt 0:00:03]} 49. g4 {[%emt 0:00:04]} Bf3 {[%emt 0:00:03]} 50. g5 {[%emt 0:00:15]} Be4 {[%emt 0:00:02]} 51. Rf6 {[%emt 0:00:11]} Nc3 {[%emt 0:00:11]} 52. Nc5 {[%emt 0:00:06]} Bd5 {[%emt 0:00:10]} 53. Rh6 {[%emt 0:00:07]} Nd1+ {[%emt 0:00:04]} 54. Kc1 {[%emt 0:00:09]} Ne3 {[%emt 0:00:02]} 55. b4 {[%emt 0:00:13]} Bc4 {[%emt 0:00:10]} 56. Rh7+ {[%emt 0:00:09]} Kf8 {[%emt 0:00:05]} 57. Rd7 {[%emt 0:00:05]} Nf5 {[%emt 0:00:05]} 58. Rc7 {[%emt 0:00:05]} Bb5 {[%emt 0:00:05]} 59. Ne6+ {[%emt 0:00:03]} Kg8 {[%emt 0:00:01]} 60. Kd2 {[%emt 0:00:03]} Nd6 {[%emt 0:00:05]} 61. Nxd4 {[%emt 0:00:07]} Bf1 {[%emt 0:00:03]} 62. Ke3 {[%emt 0:00:13]} Kh8 {[%emt 0:00:05]} 63. f5 {[%emt 0:00:04]} Bc4 {[%emt 0:00:08]} 64. Kf4 {[%emt 0:00:02]} Bg8 {[%emt 0:00:02]} 65. g6 {[%emt 0:00:04]} Ne8 {[%emt 0:00:03]} 66. Re7 {[%emt 0:00:05]} Nf6 {[%emt 0:00:02]} 67. Kg5 {[%emt 0:00:04]} Nd5 {[%emt 0:00:05]} 68. Re8 {[%emt 0:00:02]} Nc7 {[%emt 0:00:04]} 69. Rd8 {[%emt 0:00:03]} Nd5 {[%emt 0:00:05]} 70. b5 {[%emt 0:00:08]} Nf6 {[%emt 0:00:06]} 71. Rxg8+ {[%emt 0:00:07]} Nxg8 {[%emt 0:00:04]} 72. f6 {[%emt 0:00:07]} Ne7 {[%emt 0:00:05]} 73. fxe7 {[%emt 0:00:02]} Kg7 {[%emt 0:00:01]} 74. Kf4 {[%emt 0:00:14]} Kh6 {[%emt 0:00:04]} 75. e8=Q {[%emt 0:00:03]} Kh5 {[%emt 0:00:02]} 76. g7+ {[%emt 0:00:06]} Kh6 {[%emt 0:00:07]} 77. Nf5+ {[%emt 0:00:02]} 1-0

[Event "Gaprindashvili Cup Women III Stage 2020"]
[Site "Online"]
[Date "2020.11.12"]
[Round "1.2"]
[White "Tereladze, Sopiko"]
[Black "Khukhashvili, Sopiko"]
[Result "1/2-1/2"]
[ECO "D02"]
[WhiteElo "2141"]
[BlackElo "2334"]
[Annotator "broadcasts"]
[PlyCount "119"]
[EventDate "2020.11.04"]
[EventType "k.o."]
[TimeControl "1500+5"]

1. d4 {[%emt 0:00:00]} Nf6 {[%emt 0:00:07]} 2. Nf3 {[%emt 0:00:03]} e6 {[%emt 0:00:10]} 3. Bf4 {[%emt 0:00:06]} d5 {[%emt 0:00:08]} 4. e3 {[%emt 0:00:01]} c5 {[%emt 0:00:08]} 5. Bd3 {[%emt 0:00:13]} Nc6 {[%emt 0:00:21]} 6. O-O {[%emt 0:00:16]} Bd6 {[%emt 0:00:26]} 7. Bxd6 {[%emt 0:01:42]} Qxd6 {[%emt 0:00:04]} 8. c3 {[%emt 0:00:02]} O-O {[%emt 0:00:09]} 9. Nbd2 {[%emt 0:00:02]} e5 {[%emt 0:00:13]} 10. dxe5 {[%emt 0:00:03]} Nxe5 {[%emt 0:00:04]} 11. Nxe5 {[%emt 0:00:03]} Qxe5 {[%emt 0:00:03]} 12. h3 {[%emt 0:00:02]} Bf5 {[%emt 0:00:36]} 13. Nf3 {[%emt 0:00:25]} Qe6 {[%emt 0:00:04]} 14. Bxf5 {[%emt 0:00:04]} Qxf5 {[%emt 0:00:03]} 15. Qb3 {[%emt 0:00:02]} b6 {[%emt 0:00:18]} 16. Rad1 {[%emt 0:00:03]} Rfe8 {[%emt 0:00:26]} 17. Rd2 {[%emt 0:00:14]} Re4 {[%emt 0:00:06]} 18. Rfd1 {[%emt 0:00:08]} h6 {[%emt 0:00:16]} 19. Qb5 {[%emt 0:00:23]} Qe6 {[%emt 0:00:12]} 20. Qa6 {[%emt 0:00:52]} Qc6 {[%emt 0:00:19]} 21. c4 {[%emt 0:01:54]} dxc4 {[%emt 0:03:52]} 22. Rd8+ {[%emt 0:05:59]} Re8 {[%emt 0:00:05]} 23. R8d6 {[%emt 0:00:27]} Qe4 {[%emt 0:00:15]} 24. Nd2 {[%emt 0:00:26]} Qc2 {[%emt 0:00:18]} 25. Nxc4 {[%emt 0:00:04]} Ne4 {[%emt 0:00:06]} 26. R6d2 {[%emt 0:02:39]} Nxd2 {[%emt 0:00:07]} 27. Rxd2 {[%emt 0:00:01]} Qc1+ {[%emt 0:00:35]} 28. Kh2 {[%emt 0:00:04]} Rad8 {[%emt 0:00:38]} 29. Rxd8 {[%emt 0:00:29]} Rxd8 {[%emt 0:00:04]} 30. b3 {[%emt 0:00:02]} Qc2 {[%emt 0:01:14]} 31. f4 {[%emt 0:00:53]} Qe4 {[%emt 0:00:27]} 32. Qxa7 {[%emt 0:00:12]} Ra8 {[%emt 0:00:46]} 33. Qxf7+ {[%emt 0:00:45]} Kxf7 {[%emt 0:00:03]} 34. Nd6+ {[%emt 0:00:02]} Ke6 {[%emt 0:00:04]} 35. Nxe4 {[%emt 0:00:02]} Rxa2 {[%emt 0:00:03]} 36. Kg3 {[%emt 0:00:10]} Rb2 {[%emt 0:00:05]} 37. Kf3 {[%emt 0:00:02]} Rxb3 {[%emt 0:00:05]} 38. g4 {[%emt 0:00:02]} Rb2 {[%emt 0:00:19]} 39. h4 {[%emt 0:00:23]} c4 {[%emt 0:00:22]} 40. Nc3 {[%emt 0:00:25]} Rb3 {[%emt 0:00:21]} 41. Ne2 {[%emt 0:00:05]} Kd5 {[%emt 0:00:09]} 42. g5 {[%emt 0:00:03]} c3 {[%emt 0:00:18]} 43. f5 {[%emt 0:01:30]} hxg5 {[%emt 0:00:23]} 44. hxg5 {[%emt 0:00:11]} Ke5 {[%emt 0:00:20]} 45. f6 {[%emt 0:00:02]} gxf6 {[%emt 0:00:33]} 46. g6 {[%emt 0:00:04]} Ra3 {[%emt 0:00:03]} 47. g7 {[%emt 0:01:00]} Ra8 {[%emt 0:00:05]} 48. Nxc3 {[%emt 0:00:03]} Rg8 {[%emt 0:00:04]} 49. Na4 {[%emt 0:00:02]} b5 {[%emt 0:00:10]} 50. Nc3 {[%emt 0:00:02]} b4 {[%emt 0:00:04]} 51. Na2 {[%emt 0:00:02]} b3 {[%emt 0:00:04]} 52. Nc1 {[%emt 0:00:01]} Rxg7 {[%emt 0:00:30]} 53. Nxb3 {[%emt 0:00:02]} Ra7 {[%emt 0:00:09]} 54. Nd4 {[%emt 0:00:04]} Ra4 {[%emt 0:00:08]} 55. Nc6+ {[%emt 0:00:07]} Kd6 {[%emt 0:00:03]} 56. Nd4 {[%emt 0:00:05]} Rxd4 {[%emt 0:00:07]} 57. exd4 {[%emt 0:00:02]} Kd5 {[%emt 0:00:02]} 58. Kf4 {[%emt 0:00:01]} Kxd4 {[%emt 0:00:02]} 59. Kf5 {[%emt 0:00:02]} Kd5 {[%emt 0:00:02]} 60. Kxf6 {[%emt 0:00:02]} 1/2-1/2

[Event "Gaprindashvili Cup Women III Stage 2020"]
[Site "Online"]
[Date "2020.11.12"]
[Round "1.2"]
[White "Nikoladze, Sopio"]
[Black "Arabidze, Meri"]
[Result "0-1"]
[ECO "D05"]
[WhiteElo "2132"]
[BlackElo "2437"]
[Annotator "broadcasts"]
[PlyCount "40"]
[EventDate "2020.11.04"]
[EventType "k.o."]
[TimeControl "1500+5"]

1. d4 {[%emt 0:00:30]} d5 {[%emt 0:00:05]} 2. Nf3 {[%emt 0:00:27]} Nf6 {[%emt 0:00:04]} 3. e3 {[%emt 0:00:43]} c5 {[%emt 0:00:14]} 4. b3 {[%emt 0:00:03]} e6 {[%emt 0:00:11]} 5. Bb2 {[%emt 0:00:05]} Nc6 {[%emt 0:00:07]} 6. Nbd2 {[%emt 0:00:06]} Bd6 {[%emt 0:00:09]} 7. a3 {[%emt 0:00:04]} O-O {[%emt 0:00:12]} 8. Bd3 {[%emt 0:00:03]} b6 {[%emt 0:00:09]} 9. Ne5 {[%emt 0:00:06]} Bb7 {[%emt 0:00:25]} 10. f4 {[%emt 0:00:02]} Ne7 {[%emt 0:00:18]} 11. Qf3 {[%emt 0:00:24]} Nf5 {[%emt 0:01:50]} 12. g4 {[%emt 0:00:33]} Nh4 {[%emt 0:00:08]} 13. Qh3 {[%emt 0:00:46]} Ne4 {[%emt 0:00:03]} 14. g5 {[%emt 0:01:39]} Nf5 {[%emt 0:00:27]} 15. Ng4 {[%emt 0:00:57]} cxd4 {[%emt 0:01:51]} 16. Nf3 {[%emt 0:01:12]} Nxe3 {[%emt 0:03:12]} 17. g6 {[%emt 0:00:22]} fxg6 {[%emt 0:01:39]} 18. Nxe3 {[%emt 0:00:19]} dxe3 {[%emt 0:00:16]} 19. Bxe4 {[%emt 0:00:06]} dxe4 {[%emt 0:00:10]} 20. Ng5 {[%emt 0:00:15]} Bb4+ {[%emt 0:00:28]} 0-1

[Event "Gaprindashvili Cup Women III Stage 2020"]
[Site "Online"]
[Date "2020.11.12"]
[Round "1.3"]
[White "Arabidze, Meri"]
[Black "Nikoladze, Sopio"]
[Result "1-0"]
[ECO "A50"]
[WhiteElo "2437"]
[BlackElo "2132"]
[Annotator "broadcasts"]
[PlyCount "67"]
[EventDate "2020.11.04"]
[EventType "k.o."]
[TimeControl "1500+5"]

1. Nf3 {[%emt 0:00:00]} Nf6 {[%emt 0:00:08]} 2. c4 {[%emt 0:00:06]} e6 {[%emt 0:00:05]} 3. Nc3 {[%emt 0:00:05]} b6 {[%emt 0:00:14]} 4. e4 {[%emt 0:00:06]} d6 {[%emt 0:00:02]} 5. d4 {[%emt 0:00:27]} Bb7 {[%emt 0:00:03]} 6. d5 {[%emt 0:00:06]} e5 {[%emt 0:00:12]} 7. Bd3 {[%emt 0:00:06]} g6 {[%emt 0:00:03]} 8. O-O {[%emt 0:00:08]} Bg7 {[%emt 0:00:02]} 9. Rb1 {[%emt 0:00:53]} a5 {[%emt 0:00:36]} 10. a3 {[%emt 0:00:03]} O-O {[%emt 0:00:18]} 11. b4 {[%emt 0:00:04]} axb4 {[%emt 0:00:05]} 12. axb4 {[%emt 0:00:02]} Nbd7 {[%emt 0:00:03]} 13. Re1 {[%emt 0:00:47]} Nh5 {[%emt 0:00:35]} 14. Bf1 {[%emt 0:00:07]} h6 {[%emt 0:00:29]} 15. g3 {[%emt 0:00:49]} f5 {[%emt 0:00:57]} 16. Nh4 {[%emt 0:01:55]} Nf4 {[%emt 0:02:17]} 17. Qc2 {[%emt 0:00:39]} fxe4 {[%emt 0:02:20]} 18. Qxe4 {[%emt 0:03:22]} Qf6 {[%emt 0:02:32]} 19. Nf3 {[%emt 0:03:03]} Nh5 {[%emt 0:02:30]} 20. Bg2 {[%emt 0:00:12]} Qf5 {[%emt 0:02:12]} 21. Qxf5 {[%emt 0:02:49]} gxf5 {[%emt 0:00:05]} 22. Nb5 {[%emt 0:00:01]} Rac8 {[%emt 0:00:50]} 23. Nh4 {[%emt 0:00:08]} Ba6 {[%emt 0:00:38]} 24. Bh3 {[%emt 0:00:19]} Bxb5 {[%emt 0:00:24]} 25. cxb5 {[%emt 0:00:03]} Ra8 {[%emt 0:02:49]} 26. Nxf5 {[%emt 0:00:09]} Ndf6 {[%emt 0:00:46]} 27. Nxh6+ {[%emt 0:00:53]} Kh7 {[%emt 0:00:07]} 28. Bf5+ {[%emt 0:00:16]} Kh8 {[%emt 0:00:02]} 29. Be6 {[%emt 0:00:13]} Nf4 {[%emt 0:01:39]} 30. gxf4 {[%emt 0:00:57]} Bxh6 {[%emt 0:00:08]} 31. fxe5 {[%emt 0:00:03]} Bxc1 {[%emt 0:00:02]} 32. Rbxc1 {[%emt 0:00:27]} dxe5 {[%emt 0:00:13]} 33. Rxc7 {[%emt 0:00:06]} e4 {[%emt 0:00:25]} 34. Re3 {[%emt 0:00:52]} 1-0